bitfinex/quotes_SOLUSD_20251125
["timestamp","ask_amount","ask_price","bid_price","bid_amount"]
[1764082116309,6.18267191,133.81,133.74,16.308864]
[1764082116512,7.47216618,133.83,133.75,7.47663551]
[1764082116823,6.18267191,133.82,133.76,9.66267191]
[1764082117112,16.2811609,133.85,133.76,3.46]
[1764082117113,6.18267191,133.81,133.76,3.46]
[1764082117316,6.18267191,133.8,133.75,32.3508962]
[1764082117489,6.18267191,133.79,133.75,26.16822429]
[1764082117693,6.18267191,133.78,133.71,26.88493095]
[1764082117909,6.18267191,133.78,133.73,6.18267191]
[1764082118100,0.71,133.8,133.72,0.71]
[1764082118301,0.71,133.8,133.71,7.47887218]
[1764082118512,6.18267191,133.75,133.71,10.93887218]
[1764082118714,6.18267191,133.75,133.7,7.47934293]
[1764082118914,6.18267191,133.73,133.69,10.93989286]
[1764082119107,6.18267191,133.73,133.69,7.47989286]
[1764082119303,0.71,133.77,133.7,0.71]
[1764082119623,0.71,133.77,133.69,35.82254233]
[1764082119837,6.18267191,133.75,133.69,35.82254233]
[1764082119990,6.18267191,133.76,133.7,6.89267191]
[1764082120194,0.71,133.77,133.66,16.308864]
[1764082120533,7.47804111,133.73,133.64,6.89267191]
[1764082120824,0.71,133.76,133.66,6.18267191]
[1764082121003,6.18267191,133.74,133.68,6.18267191]
[1764082121203,0.71,133.75,133.64,24.50153115]
[1764082121408,6.18267191,133.73,133.68,6.18267191]
[1764082121605,8.80994492,133.73,133.62,0.71]
[1764082121793,6.18267191,133.68,133.59,0.71]
[1764082121996,6.18267191,133.66,133.61,6.18267191]
[1764082122328,0.71,133.69,133.65,6.18267191]
[1764082122649,6.89267191,133.72,133.66,6.18267191]
[1764082122928,50.0,133.83,133.66,6.18267191]
[1764082122929,0.71,133.78,133.67,0.71]
[1764082123276,6.18267191,133.84,133.67,0.71]
[1764082123277,6.18267191,133.72,133.67,0.71]
[1764082123521,6.18267191,133.73,133.68,6.18267191]
[1764082123749,6.18267191,133.71,133.66,6.18267191]
[1764082124041,6.18267191,133.7,133.64,6.18267191]
[1764082124245,16.308864,133.69,133.58,0.71]
[1764082124449,8.80994492,133.69,133.58,0.71]
[1764082124607,6.18267191,133.68,133.58,0.71]
[1764082124916,6.18267191,133.64,133.58,6.18267191]
[1764082125118,6.18267191,133.62,133.57,2.69042757]
[1764082125314,0.71,133.63,133.57,2.69042757]
[1764082125712,0.71,133.63,133.57,8.87309948]
[1764082125916,6.89267191,133.67,133.62,6.18267191]
[1764082126129,0.71,133.67,133.6,16.308864]
[1764082126348,6.18267191,133.68,133.58,0.71]
[1764082126535,0.71,133.73,133.66,6.18267191]
[1764082126740,0.71,133.87,133.72,6.18267191]
[1764082126916,6.18267191,133.84,133.73,6.18267191]
[1764082127123,6.18267191,133.78,133.72,6.18267191]
[1764082127326,17.018864,133.83,133.7,0.71]
[1764082127327,6.18267191,133.77,133.7,0.71]
[1764082127647,0.71,133.82,133.7,0.71]
[1764082127822,6.18267191,133.8,133.7,0.71]
[1764082128028,6.18267191,133.78,133.71,3.48]
[1764082128224,6.18267191,133.78,133.7,0.71]
[1764082128539,6.18267191,133.77,133.71,7.47887218]
[1764082128710,6.18267191,133.77,133.71,13.66154409]
[1764082128914,6.89267191,133.78,133.73,6.18267191]
[1764082129136,6.89267191,133.78,133.71,26.17605264]
[1764082129332,6.18267191,133.77,133.71,7.47887218]
[1764082129533,6.18267191,133.77,133.72,6.18267191]
[1764082130043,6.18267191,133.75,133.7,13.66197659]
[1764082130241,6.18267191,133.77,133.72,6.18267191]
[1764082130412,6.18267191,133.75,133.7,7.47930468]
[1764082130611,6.18267191,133.75,133.7,26.17788358]
[1764082130944,0.71,133.75,133.71,6.18267191]
[1764082131118,7.47441775,133.79,133.64,0.71]
[1764082131119,6.18267191,133.72,133.64,0.71]
[1764082131320,6.18267191,133.73,133.68,6.18267191]
[1764082131634,0.71,133.74,133.68,6.18267191]
[1764082131635,6.89267191,133.74,133.68,6.18267191]
[1764082131843,6.18267191,133.76,133.7,6.18267191]
[1764082132054,6.18267191,133.78,133.73,6.18267191]
[1764082132219,4.19,133.8,133.73,6.18267191]
[1764082132220,0.71,133.8,133.73,6.18267191]
[1764082132419,6.89267191,133.8,133.73,0.71]
[1764082132620,6.89267191,133.8,133.74,32.35285285]
[1764082132822,6.89267191,133.8,133.74,13.65986646]
[1764082133040,6.18267191,133.78,133.73,6.18267191]
[1764082133223,0.7,133.79,133.72,29.96974636]
[1764082133535,6.18267191,133.75,133.7,24.88100863]
[1764082133739,6.18267191,133.75,133.7,6.18267191]
[1764082134058,0.7,133.82,133.74,6.18267191]
[1764082134220,6.18267191,133.8,133.75,6.18267191]
[1764082134536,6.18267191,133.77,133.71,6.18267191]
[1764082134747,9.50994492,133.81,133.72,7.47831289]
[1764082135045,9.50994492,133.8,133.72,6.18267191]
[1764082135217,6.18267191,133.77,133.72,6.18267191]
[1764082135623,6.18267191,133.77,133.71,24.4477142]
[1764082135822,6.88267191,133.77,133.72,6.18267191]
[1764082136543,6.18267191,133.79,133.73,6.84267191]
[1764082136747,16.98231849,133.83,133.74,26.17018094]
[1764082137050,6.18267191,133.8,133.74,7.47719455]
[1764082137216,12.2765719,133.91,133.74,7.47719455]
[1764082137217,0.7,133.82,133.74,7.47719455]
[1764082137421,6.18267191,133.79,133.73,7.47759393]
[1764082137650,0.7,133.82,133.75,6.18267191]
[1764082137854,6.18267191,133.79,133.73,26.17197813]
[1764082138068,6.18267191,133.78,133.73,13.66026584]
[1764082138366,6.18267191,133.77,133.71,29.97000038]
[1764082138546,6.18267191,133.78,133.73,6.18267191]
[1764082138859,6.18267191,133.78,133.73,32.35480979]
[1764082139162,6.85267191,133.77,133.71,16.308864]
[1764082139347,0.67,133.77,133.71,22.49153591]
[1764082139554,6.18267191,133.76,133.71,29.97039258]
[1764082139749,6.85267191,133.76,133.71,22.49153591]
[1764082140055,6.18267191,133.76,133.71,30.66037171]
[1764082140253,6.18267191,133.76,133.62,0.74839095]
[1764082140254,6.18267191,133.72,133.62,0.74839095]
[1764082140436,6.18267191,133.68,133.62,0.69]
[1764082140639,6.18267191,133.67,133.62,32.37625579]
[1764082140943,0.67,133.75,133.66,6.18267191]
[1764082141263,0.67,133.75,133.71,6.18267191]
[1764082141468,12.95994492,133.79,133.72,6.18267191]
[1764082141661,0.67,133.78,133.72,6.18267191]
[1764082141861,6.18267191,133.75,133.69,16.308864]
[1764082142161,6.18267191,133.77,133.7,0.69]
[1764082142341,0.67,133.82,133.75,6.18267191]
[1764082142544,0.67,133.82,133.77,6.18267191]
[1764082142777,6.18267191,133.83,133.78,13.65763079]
[1764082143071,6.18267191,133.79,133.69,0.69]
[1764082143243,6.18267191,133.75,133.69,43.17878707]
[1764082143441,19.788864,133.83,133.7,6.18267191]
[1764082143442,6.18267191,133.76,133.7,6.18267191]
[1764082143642,16.308864,133.81,133.72,6.18267191]
[1764082143870,0.67,133.82,133.75,6.18267191]
[1764082143871,9.47994492,133.82,133.75,6.18267191]
[1764082144166,6.18267191,133.84,133.79,6.18267191]
[1764082144378,3.48,133.9,133.8,6.18267191]
[1764082144542,6.85267191,133.86,133.81,6.18267191]
[1764082145164,6.85267191,133.88,133.82,6.18267191]
[1764082145373,0.67,133.88,133.84,6.18267191]
[1764082145570,6.18267191,133.87,133.77,26.1641052]
[1764082145867,6.18267191,133.79,133.73,26.17213788]
[1764082146058,8.80994492,133.86,133.76,6.18267191]
[1764082146059,9.47994492,133.86,133.76,6.18267191]
[1764082146265,6.18267191,133.83,133.78,6.18267191]
[1764082146580,6.18267191,133.84,133.79,6.18267191]
[1764082146873,0.67,133.89,133.84,7.47160789]
[1764082147257,0.67,133.89,133.79,23.78326417]
[1764082147449,0.67,133.89,133.79,42.46926461]
[1764082147644,0.67,133.89,133.8,0.69]
[1764082147844,6.18267191,133.85,133.8,6.18267191]
[1764082148370,6.18267191,133.83,133.78,7.47474721]
[1764082148555,10.3945842,133.84,133.79,9.7245842]
[1764082148965,7.47062953,133.86,133.77,23.78384424]
[1764082149270,10.3945842,133.85,133.77,80.54022682]
[1764082149573,0.67,133.86,133.82,9.7245842]
[1764082149752,0.67,133.89,133.84,9.7245842]
[1764082149952,0.67,133.89,133.85,9.7245842]
[1764082150153,0.67,133.89,133.8,16.308864]
[1764082150348,0.67,133.89,133.79,0.69]
[1764082150554,9.7245842,133.86,133.79,0.69]
[1764082150857,9.7245842,133.87,133.82,7.47272455]
[1764082151172,0.67,133.89,133.85,9.7245842]
[1764082151478,9.7245842,133.86,133.74,0.69]
[1764082151776,9.47994492,133.88,133.8,9.7245842]
[1764082151979,10.3945842,133.87,133.82,9.7245842]
[1764082152371,0.67,133.86,133.79,0.69]
[1764082152557,0.67,133.86,133.82,9.7245842]
[1764082152956,0.67,133.86,133.83,17.19675038]
[1764082153171,10.3945842,133.9,133.85,9.7245842]
[1764082153379,9.00994492,133.91,133.83,0.69]
[1764082153675,0.87,133.91,133.87,9.7245842]
[1764082153969,0.67,133.9,133.86,9.7245842]
[1764082154175,0.67,133.9,133.87,9.7245842]
[1764082154350,0.67,133.9,133.85,9.7245842]
[1764082154744,0.67,133.9,133.83,9.7245842]
[1764082154745,9.47994492,133.9,133.83,9.7245842]
[1764082154948,0.67,133.9,133.85,9.7245842]
[1764082155183,0.67,133.9,133.83,8.1618519]
[1764082155473,10.3945842,133.89,133.84,9.7245842]
[1764082155774,0.67,133.89,133.85,9.7245842]
[1764082156078,10.3945842,133.89,133.84,9.7245842]
[1764082156258,0.67,133.89,133.83,7.4718519]
[1764082156580,0.67,133.88,133.84,9.7245842]
[1764082156758,0.67,133.9,133.86,9.7245842]
[1764082157091,0.2,133.91,133.85,7.47103843]
[1764082157395,0.2,133.91,133.89,9.7245842]
[1764082157555,0.2,133.91,133.9,9.7245842]
[1764082157752,0.67,133.96,133.9,9.7245842]
[1764082157949,7.5638399,134.01,133.93,9.7245842]
[1764082157950,11.56641189,134.01,133.93,9.7245842]
[1764082158160,9.7245842,133.95,133.9,9.7245842]
[1764082158359,9.7245842,133.96,133.91,9.7245842]
[1764082158577,0.67,133.95,133.91,9.7245842]
[1764082158745,10.3945842,133.96,133.92,9.7245842]
[1764082158956,9.7245842,133.94,133.87,23.77879751]
[1764082159156,10.3945842,133.95,133.9,9.7245842]
[1764082159677,10.3945842,133.95,133.84,37.35642039]
[1764082159678,8.80994492,133.9,133.81,9.7245842]
[1764082159978,8.80994492,133.91,133.79,0.69]
[1764082160145,0.67,133.9,133.83,9.7245842]
[1764082160352,9.7245842,133.88,133.83,9.7245842]
[1764082160550,0.67,133.9,133.84,9.7245842]
[1764082160782,9.7245842,133.88,133.81,0.69]
[1764082160986,9.7245842,133.88,133.84,17.19619209]
[1764082161170,9.7245842,133.87,133.81,19.37204937]
[1764082161364,9.7245842,133.87,133.82,7.47252295]
[1764082161586,9.7245842,133.87,133.82,17.19710715]
[1764082161881,9.7245842,133.83,133.79,9.7245842]
[1764082162058,9.7245842,133.82,133.78,9.7245842]
[1764082162247,9.7245842,133.83,133.78,9.7245842]
[1764082162454,0.67,133.85,133.77,7.47551767]
[1764082162781,9.7245842,133.83,133.78,9.7245842]
[1764082163083,9.7245842,133.79,133.68,0.69]
[1764082163291,8.80994492,133.81,133.69,0.69]
[1764082163584,9.7245842,133.79,133.69,16.998864]
[1764082163759,9.7245842,133.78,133.73,9.7245842]
[1764082163953,4.14,133.83,133.77,9.7245842]
[1764082164260,9.7245842,133.78,133.69,3.46]
[1764082164485,9.7245842,133.78,133.73,9.7245842]
[1764082164674,0.68,133.78,133.73,9.7245842]
[1764082164867,0.68,133.78,133.75,9.7245842]
[1764082165056,0.68,133.78,133.71,16.308864]
[1764082165257,0.68,133.78,133.74,9.7245842]
[1764082165554,10.4045842,133.78,133.73,9.7245842]
[1764082165775,9.7245842,133.76,133.71,9.7245842]
[1764082165954,10.4045842,133.77,133.72,9.7245842]
[1764082166371,0.68,133.76,133.72,9.7245842]
[1764082166567,0.68,133.76,133.71,9.7245842]
[1764082166769,10.4045842,133.76,133.71,9.7245842]
[1764082166992,7.47887218,133.71,133.62,9.7245842]
[1764082167178,9.7245842,133.64,133.59,17.21017206]
[1764082167380,9.7245842,133.65,133.6,9.7245842]
[1764082167554,9.7245842,133.67,133.62,9.7245842]
[1764082167764,10.4045842,133.68,133.63,9.7245842]
[1764082168086,8.80994492,133.71,133.64,9.7245842]
[1764082168399,9.7245842,133.65,133.6,9.7245842]
[1764082168581,9.7245842,133.63,133.57,2.69042757]
[1764082168764,9.7245842,133.63,133.58,9.7245842]
[1764082169081,0.68,133.65,133.58,0.69]
[1764082169280,9.7245842,133.61,133.57,2.69042757]
[1764082169485,0.68,133.64,133.59,9.7245842]
[1764082169788,10.4045842,133.64,133.59,9.7245842]
[1764082170162,0.68,133.66,133.62,9.7245842]
[1764082170364,0.68,133.66,133.58,16.308864]
[1764082170571,0.68,133.66,133.61,9.7245842]
[1764082170789,0.68,133.7,133.6,16.308864]
[1764082170998,9.7245842,133.69,133.61,26.19564403]
[1764082171195,10.4045842,133.7,133.65,9.7245842]
[1764082171500,9.7245842,133.67,133.61,16.308864]
[1764082171691,9.7245842,133.67,133.62,9.7245842]
[1764082171995,0.68,133.67,133.61,26.0334482]
[1764082172196,0.68,133.67,133.63,9.7245842]
[1764082172864,9.7245842,133.7,133.66,7.4816699]
[1764082173069,9.7245842,133.69,133.66,7.4816699]
[1764082173269,10.4045842,133.7,133.66,7.4816699]
[1764082173491,9.7245842,133.72,133.67,9.7245842]
[1764082173694,9.7245842,133.71,133.66,7.4816699]
[1764082173868,9.7245842,133.7,133.66,7.4816699]
[1764082174197,10.4045842,133.7,133.65,17.20674633]
[1764082174693,0.68,133.7,133.66,9.7245842]
[1764082174878,10.4045842,133.72,133.67,9.7245842]
[1764082175070,9.7245842,133.71,133.68,7.48055056]
[1764082175280,9.7245842,133.7,133.66,7.48120125]
[1764082175486,9.7245842,133.69,133.66,7.48120125]
[1764082175781,9.7245842,133.69,133.64,7.48227837]
[1764082175990,0.68,133.68,133.64,17.20686257]
[1764082176202,9.7245842,133.67,133.62,9.7245842]
[1764082176508,16.28786917,133.73,133.63,3.48]
[1764082176705,9.7245842,133.69,133.64,9.7245842]
[1764082176881,9.7245842,133.69,133.65,3.48]
[1764082177076,10.4045842,133.69,133.66,7.4816699]
[1764082177300,0.68,133.68,133.65,7.48207719]
[1764082177577,8.80994492,133.73,133.65,20.68666139]
[1764082177578,9.7245842,133.7,133.65,20.68666139]
[1764082177902,9.7245842,133.71,133.66,9.7245842]
[1764082178076,8.15842607,133.72,133.65,7.48207719]
[1764082178282,9.7245842,133.68,133.64,7.48263732]
[1764082178481,9.7245842,133.65,133.6,44.74552385]
[1764082178706,9.7245842,133.65,133.61,3.48]
[1764082178955,9.48994492,133.7,133.57,40.12364501]
[1764082178956,9.7245842,133.63,133.58,7.48596909]
[1764082179088,8.80994492,133.67,133.6,9.7245842]
[1764082179282,0.68,133.66,133.61,9.7245842]
[1764082179503,0.68,133.66,133.6,9.7245842]
[1764082179701,9.7245842,133.65,133.61,3.48]
[1764082179917,10.4045842,133.66,133.61,13.2045842]
[1764082180095,10.4045842,133.65,133.61,3.48]
[1764082180287,10.4045842,133.65,133.6,9.7245842]
[1764082180487,9.7245842,133.67,133.61,3.48]
[1764082180805,10.4045842,133.66,133.61,9.7245842]
[1764082181019,9.7245842,133.65,133.61,3.48]
[1764082181323,0.68,133.65,133.61,9.7245842]
[1764082181484,0.68,133.65,133.62,3.46]
[1764082181915,0.68,133.68,133.63,10.4145842]
[1764082182114,0.68,133.68,133.64,9.7245842]
[1764082182289,0.68,133.68,133.62,3.46]
[1764082182290,10.4045842,133.68,133.63,9.7245842]
[1764082182609,9.7245842,133.7,133.65,9.7245842]
[1764082182910,9.7245842,133.67,133.62,16.308864]
[1764082183082,9.7245842,133.67,133.63,3.46]
[1764082183279,10.4045842,133.67,133.64,3.46]
[1764082183588,0.68,133.67,133.64,3.46]
[1764082183790,0.68,133.67,133.63,9.7245842]
[1764082183989,10.4045842,133.72,133.66,9.7245842]
[1764082184188,9.7245842,133.69,133.67,3.46]
[1764082184492,9.7245842,133.68,133.57,2.69042757]
[1764082184695,9.7245842,133.63,133.58,9.7245842]
[1764082184909,8.80994492,133.68,133.61,9.7245842]
[1764082185212,9.7245842,133.63,133.58,9.7245842]
[1764082185508,9.7245842,133.63,133.57,10.17701363]
[1764082185697,10.4045842,133.62,133.57,19.90159783]
[1764082185900,9.7245842,133.64,133.59,9.7245842]
[1764082186096,9.7245842,133.64,133.57,10.86701363]
[1764082186302,9.7245842,133.64,133.59,9.7245842]
[1764082186501,9.7245842,133.64,133.58,3.48]
[1764082186701,9.7245842,133.64,133.59,9.7245842]
[1764082187101,9.7245842,133.65,133.6,17.20961414]
[1764082187311,0.68,133.65,133.6,9.7245842]
[1764082187512,10.4045842,133.64,133.58,7.48615062]
[1764082187730,9.7245842,133.63,133.57,3.38042757]
[1764082188012,10.4045842,133.64,133.59,9.7245842]
[1764082188209,0.68,133.67,133.6,3.48]
[1764082188385,10.4045842,133.67,133.62,9.7245842]
[1764082188817,9.7245842,133.65,133.6,16.308864]
[1764082189014,0.68,133.66,133.6,26.0334482]
[1764082189325,8.1601244,133.69,133.61,0.69]
[1764082189515,9.7245842,133.68,133.62,9.7245842]
[1764082189713,3.46,133.7,133.61,0.69]
[1764082190014,8.80994492,133.67,133.57,10.86709208]
[1764082190200,9.7245842,133.65,133.58,0.69]
[1764082190390,9.7245842,133.65,133.59,9.7245842]
[1764082190790,9.7245842,133.61,133.5,25.0]
[1764082190997,16.988864,133.64,133.42,88.37844471]
[1764082190998,9.7245842,133.51,133.42,50.82882129]
[1764082191295,9.7245842,133.48,133.42,50.82882129]
[1764082191495,8.80994492,133.53,133.44,8.54922772]
[1764082191816,9.7245842,133.47,133.44,0.36534]
[1764082192135,9.7245842,133.48,133.44,0.36534]
[1764082192296,0.68,133.5,133.44,0.36534]
[1764082192297,9.7245842,133.45,133.44,0.36534]
[1764082192491,0.68,133.49,133.44,0.36534]
[1764082192688,9.7245842,133.48,133.44,0.36534]
[1764082192989,9.7245842,133.46,133.44,0.36534]
[1764082193225,7.49234737,133.47,133.44,0.36534]
[1764082193523,9.7245842,133.48,133.44,0.36534]
[1764082193889,26.21924226,133.49,133.44,0.36534]
[1764082194104,9.7245842,133.47,133.44,0.36534]
[1764082194343,9.7245842,133.46,133.44,0.36534]
[1764082194651,0.71,133.48,133.44,0.36534]
[1764082194652,9.7245842,133.45,133.44,0.36534]
[1764082195145,9.7245842,133.47,133.44,0.36534]
[1764082195438,8.20126919,133.49,133.44,0.36534]
[1764082195844,9.7245842,133.47,133.44,0.36534]
[1764082196021,9.7245842,133.48,133.44,1.04534]
[1764082196216,9.7245842,133.49,133.44,1.04534]
[1764082196516,9.7245842,133.48,133.44,1.04534]
[1764082196840,0.71,133.49,133.44,0.36534]
[1764082197035,9.7245842,133.47,133.44,0.36534]
[1764082197217,8.80994492,133.49,133.44,0.36534]
[1764082197423,9.7245842,133.47,133.44,7.85924997]
[1764082197757,9.7245842,133.48,133.44,7.85924997]
[1764082198039,11.76068097,133.5,133.44,7.85924997]
[1764082198040,4.27,133.5,133.44,7.85924997]
[1764082198236,9.7245842,133.48,133.44,7.85924997]
[1764082198443,4.27,133.5,133.44,7.85924997]
[1764082198619,9.7245842,133.49,133.44,7.85924997]
[1764082198821,9.7245842,133.49,133.44,1.04534]
[1764082199033,10.4345842,133.54,133.46,16.308864]
[1764082199232,9.7245842,133.52,133.47,4.24]
[1764082199542,9.7245842,133.52,133.47,0.68]
[1764082199716,9.7245842,133.52,133.48,0.7]
[1764082199905,1.53900756,133.54,133.47,0.7]
[1764082200111,1.53900756,133.54,133.47,10.4245842]
[1764082200406,9.7245842,133.49,133.45,7.49332852]
[1764082200615,9.51994492,133.53,133.44,38.15278175]
[1764082200820,9.7245842,133.5,133.45,0.7]
[1764082201134,9.7245842,133.49,133.45,0.7]
[1764082201339,0.71,133.56,133.48,9.7245842]
[1764082201511,0.82900756,133.55,133.5,9.7245842]
[1764082201714,9.7245842,133.55,133.49,3.56]
[1764082201911,1.53900756,133.58,133.49,3.56]
[1764082201912,9.7245842,133.56,133.5,0.7]
[1764082202250,10.55359176,133.58,133.51,3.56]
[1764082202442,10.55359176,133.58,133.52,9.7245842]
[1764082202611,10.55359176,133.58,133.52,0.7]
[1764082202612,9.7245842,133.57,133.52,0.7]
[1764082202808,0.82900756,133.59,133.52,0.7]
[1764082203014,9.7245842,133.55,133.5,3.56]
[1764082203217,0.71,133.59,133.51,28.44926659]
[1764082203522,9.7245842,133.54,133.48,3.56]
[1764082203735,9.7245842,133.54,133.48,13.2845842]
[1764082204025,0.71,133.55,133.49,9.7245842]
[1764082204210,0.82900756,133.54,133.48,10.4245842]
[1764082204411,0.82900756,133.54,133.45,0.7]
[1764082204631,0.82900756,133.55,133.5,9.7245842]
[1764082204836,9.7245842,133.54,133.47,16.308864]
[1764082205016,9.7245842,133.53,133.48,9.7245842]
[1764082205218,9.7245842,133.5,133.45,9.7245842]
[1764082205419,9.7245842,133.5,133.45,10.4245842]
[1764082205618,0.82900756,133.5,133.45,0.7]
[1764082206013,0.82900756,133.5,133.44,7.85930253]
[1764082206217,9.7245842,133.49,133.45,0.7]
[1764082206427,0.82900756,133.51,133.45,0.7]
[1764082206629,8.80994492,133.5,133.44,26.59431452]
[1764082206835,9.7245842,133.48,133.44,26.59431452]
[1764082207141,9.7245842,133.45,133.44,0.36534]
[1764082207332,16.30451135,133.43,133.42,49.94882129]
[1764082207520,26.02909555,133.43,133.42,49.94882129]
[1764082207726,26.02909555,133.43,133.42,44.31558482]
[1764082208051,42.33795955,133.43,133.33,0.1]
[1764082208219,9.7245842,133.36,133.33,0.1]
[1764082208646,6.24989056,133.36,133.33,0.8]
[1764082208857,8.80994492,133.39,133.33,7.5998713]
[1764082209044,6.24989056,133.37,133.33,7.5998713]
[1764082209219,6.24989056,133.36,133.33,7.5998713]
[1764082209660,8.80994492,133.39,133.33,7.5998713]
[1764082209661,8.80994492,133.39,133.33,8.2998713]
[1764082209958,6.24989056,133.36,133.33,0.1]
[1764082210317,6.24989056,133.35,133.33,0.1]
[1764082210750,6.24989056,133.36,133.33,0.1]
[1764082211049,6.24989056,133.37,133.33,7.60015754]
[1764082211260,3.56,133.39,133.33,7.60015754]
[1764082211547,6.24989056,133.37,133.33,8.30015754]
[1764082211952,6.24989056,133.38,133.34,0.7]
[1764082212115,3.56,133.39,133.33,0.1]
[1764082212317,6.24989056,133.37,133.33,0.1]
[1764082212526,6.24989056,133.36,133.31,16.308864]
[1764082212817,6.24989056,133.35,133.23,8.80994492]
[1764082213036,0.7,133.38,133.31,6.24989056]
[1764082213224,6.24989056,133.36,133.31,6.24989056]
[1764082213426,6.24989056,133.36,133.26,37.51793701]
[1764082213628,6.24989056,133.36,133.31,6.24989056]
[1764082213833,6.24989056,133.36,133.32,6.24989056]
[1764082214031,0.7,133.38,133.28,6.24989056]
[1764082214339,0.7,133.42,133.29,0.75024382]
[1764082214542,6.24989056,133.4,133.35,6.24989056]
[1764082214740,13.89895248,133.43,133.36,6.24989056]
[1764082215048,13.89895248,133.43,133.37,6.24989056]
[1764082215049,6.24989056,133.41,133.37,6.24989056]
[1764082215269,0.82900756,133.43,133.38,7.49737591]
[1764082215431,6.24989056,133.42,133.38,8.19737591]
[1764082215759,6.24989056,133.41,133.38,7.49737591]
[1764082215963,1.52900756,133.44,133.38,7.49737591]
[1764082216167,0.82900756,133.44,133.4,6.24989056]
[1764082216463,6.24989056,133.42,133.38,13.74726647]
[1764082216676,6.24989056,133.4,133.35,16.308864]
[1764082216861,9.63895248,133.46,133.36,7.49850029]
[1764082216862,0.82900756,133.43,133.36,7.49850029]
[1764082217243,6.24989056,133.4,133.36,7.49850029]
[1764082217444,6.24989056,133.4,133.35,32.49613782]
[1764082217647,6.24989056,133.4,133.36,0.7]
[1764082217841,0.82900756,133.43,133.38,6.24989056]
[1764082218164,0.82900756,133.45,133.39,6.94989056]
[1764082218370,6.24989056,133.46,133.42,6.24989056]
[1764082218576,1.52900756,133.49,133.42,0.7]
[1764082218878,6.24989056,133.46,133.42,6.94989056]
[1764082219072,6.24989056,133.45,133.42,0.7]
[1764082219378,6.24989056,133.43,133.36,16.308864]
[1764082219582,0.82900756,133.42,133.27,26.26247467]
[1764082219786,6.24989056,133.38,133.23,50.0]
[1764082219996,8.80994492,133.41,133.24,27.71891322]
[1764082220156,0.82900756,133.4,133.24,31.27891322]
[1764082220351,0.7,133.43,133.24,31.27891322]
[1764082220352,0.82900756,133.42,133.28,16.308864]
[1764082220647,0.82900756,133.43,133.33,8.80994492]
[1764082220869,0.7,133.49,133.36,16.308864]
[1764082221039,6.24989056,133.47,133.42,6.24989056]
[1764082221479,7.07889812,133.48,133.43,14.44445699]
[1764082221647,6.24989056,133.49,133.44,6.24989056]
[1764082221852,6.24989056,133.5,133.45,6.24989056]
[1764082222062,6.24989056,133.5,133.45,6.94989056]
[1764082222365,0.82900756,133.55,133.46,0.7]
[1764082222675,6.24989056,133.6,133.46,0.7]
[1764082222859,6.24989056,133.55,133.5,6.24989056]
[1764082223055,0.82900756,133.54,133.46,6.94989056]
[1764082223352,6.24989056,133.54,133.49,13.7410507]
[1764082223556,0.82900756,133.57,133.49,7.49116014]
[1764082223757,0.82900756,133.56,133.51,6.24989056]
[1764082223953,7.07889812,133.58,133.53,6.24989056]
[1764082224163,0.82900756,133.6,133.56,6.24989056]
[1764082224479,7.07889812,133.6,133.55,6.24989056]
[1764082224681,0.82900756,133.6,133.53,0.66]
[1764082224884,0.82900756,133.6,133.56,6.24989056]
[1764082225086,18.70280264,133.67,133.59,6.24989056]
[1764082225087,0.82900756,133.65,133.59,6.24989056]
[1764082225301,0.82900756,133.65,133.55,16.308864]
[1764082225460,8.18116369,133.67,133.59,7.48513626]
[1764082225656,6.24989056,133.64,133.59,13.73543017]
[1764082225854,0.82900756,133.66,133.58,6.24989056]
[1764082225855,6.24989056,133.63,133.58,6.24989056]
[1764082226163,1.52900756,133.66,133.57,26.86342715]
[1764082226366,0.82900756,133.66,133.57,26.86342715]
[1764082226557,0.82900756,133.66,133.58,4.22]
[1764082226754,0.82900756,133.68,133.58,0.66]
[1764082226957,0.82900756,133.68,133.64,6.24989056]
[1764082227173,0.82900756,133.69,133.65,6.24989056]
[1764082227354,6.24989056,133.67,133.61,0.66]
[1764082227559,7.07889812,133.66,133.61,6.90989056]
[1764082227767,7.07889812,133.66,133.61,0.66]
[1764082227964,7.07889812,133.66,133.52,6.24989056]
[1764082227965,6.24989056,133.62,133.56,0.66]
[1764082228183,7.07889812,133.64,133.59,6.24989056]
[1764082228366,0.82900756,133.66,133.62,6.24989056]
[1764082228557,0.82900756,133.67,133.63,6.24989056]
[1764082228756,0.7,133.71,133.65,6.24989056]